[Event "Pervenstvo PFO 2023_Y19_Rapid"]
[Site "Samara region, Russia"]
[Date "2023.11.11"]
[Round "9.3"]
[White "Berezin, Zachar"]
[Black "Galyaviev, Samat"]
[Result "0-1"]
[TimeControl "10:5"]
[WhiteFideId "44139322"]
[BlackFideId "44168470"]
[WhiteElo "1658"]
[BlackElo "2030"]

1. d4 {[%clk 00:10:08]} e6 {[%clk 00:10:08]} {[%emt 00:00:03]} 2. Nc3 {[%clk
00:10:11]} {[%emt 00:00:02]} d5 {[%clk 00:10:11]} {[%emt 00:00:02]} 3. Bf4
{[%clk 00:10:15]} Bd6 {[%clk 00:10:12]} {[%emt 00:00:04]} 4. e3 {[%clk
00:10:17]} {[%emt 00:00:03]} Ne7 {[%clk 00:10:12]} {[%emt 00:00:05]} 5. Nf3
{[%clk 00:10:20]} {[%emt 00:00:01]} Ng6 {[%clk 00:10:15]} {[%emt 00:00:02]} 6.
Bg3 {[%clk 00:10:22]} {[%emt 00:00:03]} O-O {[%clk 00:10:13]} {[%emt 00:00:07]}
7. Bd3 {[%clk 00:09:48]} {[%emt 00:00:39]} a6 {[%clk 00:10:09]} {[%emt
00:00:10]} 8. Ne5 {[%clk 00:09:41]} {[%emt 00:00:12]} Nd7 {[%clk 00:09:08]}
{[%emt 00:01:05]} 9. f4 {[%clk 00:09:41]} {[%emt 00:00:05]} f5 {[%clk
00:09:06]} {[%emt 00:00:08]} 10. Nxg6 {[%clk 00:09:09]} {[%emt 00:00:35]} hxg6
{[%clk 00:09:10]} {[%emt 00:00:02]} 11. h4 {[%clk 00:09:01]} {[%emt 00:00:13]}
Nf6 {[%clk 00:09:13]} {[%emt 00:00:02]} 12. Qd2 {[%clk 00:08:22]} {[%emt
00:00:44]} c5 {[%clk 00:08:58]} {[%emt 00:00:20]} 13. O-O-O {[%clk 00:07:44]}
{[%emt 00:00:43]} b5 {[%clk 00:09:01]} {[%emt 00:00:03]} 14. dxc5 {[%clk
00:06:48]} {[%emt 00:01:00]} Bxc5 {[%clk 00:09:02]} {[%emt 00:00:04]} 15. Ne2
{[%clk 00:06:45]} {[%emt 00:00:08]} Qb6 {[%clk 00:08:52]} {[%emt 00:00:15]} 16.
Bf2 {[%clk 00:06:35]} {[%emt 00:00:15]} b4 {[%clk 00:08:09]} {[%emt 00:00:55]}
17. Nd4 {[%clk 00:06:37]} {[%emt 00:00:06]} a5 {[%clk 00:08:11]} {[%emt
00:00:03]} 18. Rdg1 {[%clk 00:04:50]} {[%emt 00:01:52]} Ba6 {[%clk 00:07:26]}
{[%emt 00:00:51]} 19. g4 {[%clk 00:04:23]} {[%emt 00:00:31]} Bxd3 {[%clk
00:07:04]} {[%emt 00:00:27]} 20. Qxd3 {[%clk 00:04:23]} {[%emt 00:00:05]} Bxd4
{[%clk 00:05:50]} {[%emt 00:01:19]} 21. exd4 {[%clk 00:04:18]} {[%emt
00:00:11]} Nxg4 {[%clk 00:05:32]} {[%emt 00:00:23]} 22. Be1 {[%clk 00:02:12]}
{[%emt 00:02:10]} Qc7 {[%clk 00:05:08]} {[%emt 00:00:29]} 23. Bg3 {[%clk
00:01:07]} {[%emt 00:01:10]} Qc4 {[%clk 00:04:58]} {[%emt 00:00:15]} 24. Qxc4
{[%clk 00:00:45]} {[%emt 00:00:28]} dxc4 {[%clk 00:05:01]} 25. Re1 {[%clk
00:00:50]} Kf7 {[%clk 00:05:03]} {[%emt 00:00:04]} 26. h5 {[%clk 00:00:42]}
{[%emt 00:00:13]} gxh5 {[%clk 00:05:04]} {[%emt 00:00:04]} 27. Rxh5 {[%clk
00:00:45]} {[%emt 00:00:01]} Rh8 {[%clk 00:04:50]} {[%emt 00:00:19]} 28. Rxh8
{[%clk 00:00:34]} {[%emt 00:00:16]} Rxh8 {[%clk 00:04:54]} {[%emt 00:00:01]} 29.
Kd2 {[%clk 00:00:30]} {[%emt 00:00:10]} Rh3 {[%clk 00:04:52]} {[%emt 00:00:06]}
30. Rg1 {[%clk 00:00:32]} {[%emt 00:00:03]} Ke7 {[%clk 00:04:47]} {[%emt
00:00:10]} 31. b3 {[%clk 00:00:31]} {[%emt 00:00:06]} c3+ {[%clk 00:04:31]}
{[%emt 00:00:20]} 32. Kd3 {[%clk 00:00:27]} {[%emt 00:00:10]} Kd6 {[%clk
00:04:23]} {[%emt 00:00:14]} 33. Kc4 {[%clk 00:00:26]} {[%emt 00:00:06]} Kc6
{[%clk 00:04:26]} {[%emt 00:00:02]} 34. a3 {[%clk 00:00:09]} {[%emt 00:00:22]}
Ne3+ {[%clk 00:04:08]} {[%emt 00:00:22]} 35. Kd3 {[%clk 00:00:11]} {[%emt
00:00:03]} Nd5 {[%clk 00:04:09]} {[%emt 00:00:04]} 36. Kc4 {[%clk 00:00:15]}
{[%emt 00:00:02]} Nb6+ {[%clk 00:04:07]} {[%emt 00:00:07]} 37. Kd3 {[%clk
00:00:18]} {[%emt 00:00:02]} Kd5 {[%clk 00:04:08]} {[%emt 00:00:03]} 38. axb4
{[%clk 00:00:21]} {[%emt 00:00:02]} axb4 {[%clk 00:04:12]} {[%emt 00:00:02]} 39.
Ke3 {[%clk 00:00:18]} {[%emt 00:00:07]} Nd7 {[%clk 00:02:56]} {[%emt 00:01:21]}
40. Kf3 {[%clk 00:00:18]} {[%emt 00:00:05]} Nb8 {[%clk 00:03:00]} {[%emt
00:00:02]} 41. Kg2 {[%clk 00:00:18]} {[%emt 00:00:05]} Rh8 {[%clk 00:03:00]}
{[%emt 00:00:04]} 42. Kf3 {[%clk 00:00:18]} {[%emt 00:00:05]} Nc6 {[%clk
00:03:03]} {[%emt 00:00:02]} 43. Bf2 {[%clk 00:00:23]} Rh3+ {[%clk 00:03:00]}
{[%emt 00:00:08]} 44. Kg2 {[%clk 00:00:18]} {[%emt 00:00:10]} Rh7 {[%clk
00:02:10]} {[%emt 00:00:55]} 45. Rd1 {[%clk 00:00:22]} {[%emt 00:00:02]} Rh8
{[%clk 00:02:07]} {[%emt 00:00:08]} 46. Kf3 {[%clk 00:00:20]} {[%emt 00:00:06]}
Ra8 {[%clk 00:01:59]} {[%emt 00:00:13]} 47. Kg2 {[%clk 00:00:14]} {[%emt
00:00:12]} Ra2 {[%clk 00:02:00]} {[%emt 00:00:03]} 48. Rc1 {[%clk 00:00:18]}
Na7 {[%clk 00:01:46]} {[%emt 00:00:19]} 49. Kf3 {[%clk 00:00:18]} {[%emt
00:00:05]} Nb5 {[%clk 00:01:48]} {[%emt 00:00:03]} 50. Kg2 {[%clk 00:00:07]}
{[%emt 00:00:16]} Na3 {[%clk 00:01:46]} {[%emt 00:00:07]} 51. Re1 {[%clk
00:00:12]} Rxc2 {[%clk 00:01:43]} {[%emt 00:00:09]} 52. Re5+ {[%clk 00:00:20]}
Kd6 {[%clk 00:01:53]} {[%emt 00:00:01]} 53. Ra5 {[%clk 00:00:15]} {[%emt
00:00:10]} Rd2 {[%clk 00:01:49]} {[%emt 00:00:14]} 54. Ra6+ {[%clk 00:00:13]}
{[%emt 00:00:11]} Kd5 {[%clk 00:01:40]} {[%emt 00:00:14]} 55. Ra5+ {[%clk
00:00:10]} {[%emt 00:00:08]} Ke4 {[%clk 00:01:43]} {[%emt 00:00:01]} 56. Re5+
{[%clk 00:00:14]} Kd3 {[%clk 00:01:47]} {[%emt 00:00:02]} 57. d5 {[%clk
00:00:12]} {[%emt 00:00:08]} exd5 {[%clk 00:01:46]} {[%emt 00:00:06]} 58. Rxd5+
{[%clk 00:00:15]} {[%emt 00:00:02]} Kc2 {[%clk 00:01:50]} 59. Rxf5 {[%clk
00:00:11]} {[%emt 00:00:09]} Kb2 {[%clk 00:01:50]} {[%emt 00:00:05]} 60. Kf3
{[%clk 00:00:09]} {[%emt 00:00:07]} c2 {[%clk 00:01:50]} {[%emt 00:00:05]} 61.
Rc5 {[%clk 00:00:10]} {[%emt 00:00:04]} 0-1

[Event "Pervenstvo PFO 2023_Y19_Rapid"]
[Site "Samara region, Russia"]
[Date "2023.11.11"]
[Round "9.4"]
[White "Pukhov, Ivan"]
[Black "Ivanov, Matvei"]
[Result "0-1"]
[TimeControl "10:5"]
[WhiteFideId "34301895"]
[BlackFideId "54131987"]
[WhiteElo "1955"]
[BlackElo "1918"]

1. Nf3 {[%clk 00:09:00]} {[%emt 00:00:01]} Nf6 {[%clk 00:10:10]} 2. g3 {[%clk
00:09:04]} {[%emt 00:00:02]} b5 {[%clk 00:10:14]} 3. Bg2 {[%clk 00:08:53]}
{[%emt 00:00:16]} Bb7 {[%clk 00:10:19]} 4. O-O {[%clk 00:08:56]} {[%emt
00:00:02]} e6 {[%clk 00:10:23]} 5. d3 {[%clk 00:08:57]} {[%emt 00:00:03]} d5
{[%clk 00:10:26]} {[%emt 00:00:03]} 6. Nbd2 {[%clk 00:08:28]} {[%emt 00:00:34]}
Be7 {[%clk 00:10:05]} {[%emt 00:00:26]} 7. e4 {[%clk 00:08:19]} {[%emt
00:00:14]} dxe4 {[%clk 00:10:08]} {[%emt 00:00:02]} 8. Ng5 {[%clk 00:08:12]}
{[%emt 00:00:11]} Qc8 {[%clk 00:09:05]} {[%emt 00:01:09]} 9. Ndxe4 {[%clk
00:06:58]} {[%emt 00:01:19]} Nxe4 {[%clk 00:08:09]} {[%emt 00:01:00]} 10. Nxe4
{[%clk 00:06:29]} {[%emt 00:00:34]} Nd7 {[%clk 00:08:11]} {[%emt 00:00:03]} 11.
a4 {[%clk 00:05:51]} {[%emt 00:00:43]} b4 {[%clk 00:07:18]} {[%emt 00:00:59]}
12. Qg4 {[%clk 00:05:28]} {[%emt 00:00:27]} g6 {[%clk 00:06:12]} {[%emt
00:01:12]} 13. Qe2 {[%clk 00:04:44]} {[%emt 00:00:48]} Nf6 {[%clk 00:03:41]}
{[%emt 00:02:36]} 14. Bg5 {[%clk 00:02:42]} {[%emt 00:02:08]} Nxe4 {[%clk
00:03:39]} {[%emt 00:00:07]} 15. Bxe7 {[%clk 00:02:45]} {[%emt 00:00:01]} Nxg3
{[%clk 00:01:19]} {[%emt 00:02:25]} 16. Qe5 {[%clk 00:01:29]} {[%emt 00:01:21]}
Kxe7 {[%emt 00:00:47]} 17. fxg3 {[%clk 00:00:45]} {[%emt 00:00:03]} Rf8 {[%clk
00:00:12]} {[%emt 00:01:17]} 18. Qc5+ {[%emt 00:00:34]} Ke8 19. Bxb7 {[%clk
00:00:11]} {[%emt 00:00:09]} Qxb7 {[%clk 00:00:20]} {[%emt 00:00:02]} 20. Rae1
{[%clk 00:00:16]} Qb6 {[%clk 00:00:12]} {[%emt 00:00:13]} 21. Re5 {[%clk
00:00:06]} {[%emt 00:00:14]} Qxc5+ {[%clk 00:00:08]} {[%emt 00:00:09]} 22. Rxc5
{[%clk 00:00:10]} {[%emt 00:00:01]} Kd7 {[%clk 00:00:12]} 23. a5 {[%clk
00:00:07]} {[%emt 00:00:08]} Rab8 {[%clk 00:00:13]} {[%emt 00:00:05]} 24. Rf4
{[%clk 00:00:10]} {[%emt 00:00:02]} Kd6 {[%clk 00:00:09]} {[%emt 00:00:09]} 25.
Rcc4 {[%clk 00:00:12]} {[%emt 00:00:04]} b3 {[%clk 00:00:08]} {[%emt 00:00:05]}
26. Rfd4+ {[%clk 00:00:15]} Ke5 {[%clk 00:00:11]} {[%emt 00:00:03]} 27. Re4+
{[%clk 00:00:17]} {[%emt 00:00:03]} Kf6 {[%clk 00:00:12]} {[%emt 00:00:03]} 28.
Rxc7 {[%emt 00:00:18]} bxc2 {[%clk 00:00:15]} 29. Rxc2 {[%clk 00:00:10]} {[%emt
00:00:02]} Rb5 {[%clk 00:00:18]} {[%emt 00:00:02]} 30. b4 {[%clk 00:00:08]}
{[%emt 00:00:07]} Rfb8 {[%clk 00:00:21]} {[%emt 00:00:02]} 31. Rf4+ {[%clk
00:00:09]} {[%emt 00:00:04]} Rf5 {[%clk 00:00:24]} {[%emt 00:00:02]} 32. Rcc4
{[%clk 00:00:07]} {[%emt 00:00:08]} Rxf4 {[%clk 00:00:18]} {[%emt 00:00:11]} 33.
Rxf4+ {[%clk 00:00:09]} {[%emt 00:00:02]} Ke7 {[%clk 00:00:22]} {[%emt
00:00:01]} 34. Kf2 {[%clk 00:00:11]} {[%emt 00:00:03]} e5 {[%clk 00:00:26]} 35.
Rc4 {[%clk 00:00:14]} {[%emt 00:00:02]} Kd6 {[%clk 00:00:27]} {[%emt 00:00:03]}
36. Ke2 {[%clk 00:00:15]} {[%emt 00:00:04]} f5 {[%clk 00:00:28]} {[%emt
00:00:04]} 37. Kd2 {[%clk 00:00:19]} {[%emt 00:00:02]} g5 {[%clk 00:00:23]}
{[%emt 00:00:09]} 38. Ke3 {[%clk 00:00:09]} {[%emt 00:00:14]} Rb5 {[%clk
00:00:13]} {[%emt 00:00:16]} 39. d4 {[%clk 00:00:10]} {[%emt 00:00:04]} e4
{[%clk 00:00:10]} {[%emt 00:00:09]} 40. g4 {[%clk 00:00:08]} {[%emt 00:00:07]}
Kd5 {[%clk 00:00:08]} {[%emt 00:00:07]} 41. Rc5+ {[%clk 00:00:07]} {[%emt
00:00:06]} Rxc5 {[%clk 00:00:12]} {[%emt 00:00:01]} 42. bxc5 {[%clk 00:00:07]}
{[%emt 00:00:05]} f4+ {[%clk 00:00:16]} 43. Ke2 {[%clk 00:00:11]} a6 {[%clk
00:00:17]} {[%emt 00:00:03]} 44. h3 {[%clk 00:00:13]} {[%emt 00:00:03]} h6
{[%clk 00:00:21]} 45. Ke1 {[%clk 00:00:06]} {[%emt 00:00:12]} Kc6 {[%clk
00:00:23]} {[%emt 00:00:03]} 46. Ke2 {[%clk 00:00:10]} Kb5 {[%clk 00:00:27]} 47.
Kd2 {[%clk 00:00:07]} {[%emt 00:00:08]} f3 {[%clk 00:00:27]} {[%emt 00:00:05]}
48. Ke3 {[%clk 00:00:07]} {[%emt 00:00:05]} Kxa5 {[%clk 00:00:31]} 49. d5
{[%clk 00:00:06]} {[%emt 00:00:06]} Kb5 {[%clk 00:00:36]} 50. d6 {[%emt
00:00:04]} Kc6 51. Kd4 {[%emt 00:00:08]} 0-1

[Event "Pervenstvo PFO 2023_Y19_Rapid"]
[Site "Samara region, Russia"]
[Date "2023.11.11"]
[Round "9.5"]
[White "Sadykov, Ilgiz A."]
[Black "Ermakov, Maxim"]
[Result "1-0"]
[TimeControl "10:5"]
[WhiteFideId "34286217"]
[BlackFideId "54174996"]
[WhiteElo "1675"]
[BlackElo "1766"]

1. d4 {[%clk 00:10:08]} {[%emt 00:00:02]} c5 {[%clk 00:09:52]} {[%emt
00:00:18]} 2. d5 {[%clk 00:10:09]} {[%emt 00:00:05]} e6 {[%clk 00:09:55]}
{[%emt 00:00:03]} 3. c4 {[%clk 00:10:13]} Nf6 {[%clk 00:09:52]} {[%emt
00:00:08]} 4. Nc3 {[%clk 00:10:16]} {[%emt 00:00:01]} exd5 {[%clk 00:09:56]} 5.
cxd5 {[%emt 00:00:01]} d6 6. e4 {[%clk 00:10:18]} {[%emt 00:00:02]} g6 {[%clk
00:09:55]} {[%emt 00:00:06]} 7. h3 {[%clk 00:10:06]} {[%emt 00:00:17]} Bg7
{[%clk 00:10:00]} 8. Nf3 {[%clk 00:10:10]} O-O {[%clk 00:10:03]} {[%emt
00:00:02]} 9. Be2 {[%clk 00:10:13]} {[%emt 00:00:02]} b5 {[%clk 00:10:05]}
{[%emt 00:00:03]} 10. Qc2 {[%clk 00:09:49]} {[%emt 00:00:30]} b4 {[%clk
00:10:07]} {[%emt 00:00:02]} 11. Nd1 {[%clk 00:09:50]} {[%emt 00:00:03]} Bb7
{[%clk 00:10:05]} {[%emt 00:00:07]} 12. O-O {[%clk 00:09:52]} {[%emt 00:00:03]}
Nbd7 {[%clk 00:10:08]} {[%emt 00:00:02]} 13. Bf4 {[%clk 00:09:53]} {[%emt
00:00:05]} Qb6 {[%clk 00:10:11]} {[%emt 00:00:02]} 14. Nd2 {[%clk 00:09:53]}
{[%emt 00:00:04]} Ne5 {[%clk 00:09:58]} {[%emt 00:00:19]} 15. Bxe5 {[%clk
00:09:49]} {[%emt 00:00:09]} dxe5 {[%clk 00:10:01]} {[%emt 00:00:02]} 16. Nc4
{[%clk 00:09:53]} Qc7 {[%clk 00:10:02]} {[%emt 00:00:03]} 17. Nde3 {[%clk
00:09:57]} {[%emt 00:00:03]} Ne8 {[%clk 00:09:41]} {[%emt 00:00:25]} 18. Rfd1
{[%clk 00:09:59]} {[%emt 00:00:03]} Rc8 {[%clk 00:09:27]} {[%emt 00:00:19]} 19.
Rac1 {[%clk 00:09:53]} {[%emt 00:00:12]} Ba6 {[%clk 00:09:20]} {[%emt
00:00:09]} 20. d6 {[%clk 00:09:48]} {[%emt 00:00:12]} Qd7 {[%clk 00:08:47]}
{[%emt 00:00:38]} 21. Bg4 {[%clk 00:09:52]} f5 {[%clk 00:07:17]} {[%emt
00:01:37]} 22. exf5 {[%clk 00:09:56]} {[%emt 00:00:01]} h5 {[%clk 00:07:20]}
{[%emt 00:00:02]} 23. f6 {[%clk 00:09:47]} {[%emt 00:00:14]} hxg4 {[%clk
00:07:19]} {[%emt 00:00:05]} 24. fxg7 {[%clk 00:09:51]} Nxg7 {[%clk 00:05:28]}
{[%emt 00:01:56]} 25. Nxe5 {[%clk 00:09:52]} {[%emt 00:00:05]} Qe6 {[%clk
00:04:44]} {[%emt 00:00:48]} 26. N3xg4 {[%clk 00:09:53]} {[%emt 00:00:05]} Nf5
{[%clk 00:04:13]} {[%emt 00:00:35]} 27. d7 {[%clk 00:09:48]} {[%emt 00:00:10]}
Rcd8 {[%clk 00:03:52]} {[%emt 00:00:26]} 28. Qxc5 {[%clk 00:09:49]} {[%emt
00:00:05]} Qxa2 {[%clk 00:03:54]} {[%emt 00:00:03]} 29. Nxg6 {[%clk 00:09:31]}
{[%emt 00:00:23]} Rf7 {[%clk 00:03:45]} {[%emt 00:00:13]} 30. N4e5 {[%clk
00:09:23]} {[%emt 00:00:14]} Rf6 {[%clk 00:03:48]} {[%emt 00:00:02]} 31. Ne7+
{[%clk 00:09:00]} {[%emt 00:00:27]} Nxe7 {[%clk 00:03:51]} {[%emt 00:00:02]} 32.
Qxe7 {[%clk 00:09:04]} {[%emt 00:00:01]} Rff8 {[%clk 00:03:53]} {[%emt
00:00:03]} 33. Rd6 {[%clk 00:08:47]} {[%emt 00:00:21]} 1-0

[Event "Pervenstvo PFO 2023_Y19_Rapid"]
[Site "Samara region, Russia"]
[Date "2023.11.11"]
[Round "9.6"]
[White "Nasyrov, Danil R."]
[Black "Gimazetdinov, Amir"]
[Result "1-0"]
[TimeControl "10:5"]
[WhiteFideId "34290257"]
[BlackFideId "54142440"]
[WhiteElo "1234"]
[BlackElo "1749"]

1. d4 {[%clk 00:10:07]} d5 {[%clk 00:10:10]} 2. c4 {[%clk 00:10:11]} {[%emt
00:00:01]} dxc4 {[%clk 00:10:14]} {[%emt 00:00:02]} 3. e3 {[%clk 00:10:04]}
{[%emt 00:00:12]} Nf6 {[%clk 00:10:17]} {[%emt 00:00:02]} 4. Bxc4 {[%clk
00:10:07]} {[%emt 00:00:02]} e6 {[%clk 00:10:21]} {[%emt 00:00:01]} 5. Nc3
{[%clk 00:10:11]} c5 {[%clk 00:10:25]} 6. Nf3 {[%clk 00:10:12]} {[%emt
00:00:04]} a6 {[%clk 00:10:29]} {[%emt 00:00:01]} 7. a4 {[%clk 00:10:15]}
{[%emt 00:00:02]} Nc6 {[%clk 00:10:33]} 8. O-O {[%clk 00:10:09]} {[%emt
00:00:11]} b6 {[%clk 00:10:37]} 9. b3 {[%clk 00:09:51]} {[%emt 00:00:24]} Bb7
{[%clk 00:10:41]} 10. Ba3 {[%clk 00:09:55]} {[%emt 00:00:02]} cxd4 {[%clk
00:10:02]} {[%emt 00:00:44]} 11. Bxf8 {[%clk 00:09:54]} {[%emt 00:00:05]} dxc3
{[%clk 00:10:06]} {[%emt 00:00:01]} 12. Qxd8+ {[%clk 00:09:28]} {[%emt
00:00:32]} Rxd8 {[%clk 00:09:55]} {[%emt 00:00:17]} 13. Bxg7 {[%clk 00:09:31]}
{[%emt 00:00:01]} Ke7 {[%clk 00:09:59]} 14. Bxh8 {[%clk 00:08:45]} {[%emt
00:00:51]} Rxh8 {[%clk 00:10:03]} {[%emt 00:00:02]} 15. Rfc1 {[%clk 00:08:39]}
{[%emt 00:00:11]} Rg8 {[%clk 00:09:25]} {[%emt 00:00:43]} 16. Rxc3 {[%clk
00:06:48]} {[%emt 00:01:56]} Ne5 {[%clk 00:09:29]} 17. Nxe5 {[%clk 00:03:36]}
{[%emt 00:03:16]} Bxg2 {[%clk 00:09:32]} {[%emt 00:00:02]} 18. h3 {[%clk
00:02:14]} {[%emt 00:01:28]} b5 {[%clk 00:07:05]} {[%emt 00:02:32]} 19. axb5
{[%clk 00:01:30]} {[%emt 00:00:49]} axb5 {[%clk 00:07:09]} {[%emt 00:00:01]} 20.
Ra7+ {[%clk 00:01:25]} {[%emt 00:00:10]} Ke8 {[%clk 00:07:13]} 21. Bd3 {[%clk
00:01:06]} {[%emt 00:00:23]} Bd5+ {[%clk 00:00:06]} {[%emt 00:07:12]} 22. Kf1
{[%clk 00:00:54]} {[%emt 00:00:17]} 1-0

[Event "Pervenstvo PFO 2023_Y19_Rapid"]
[Site "Samara region, Russia"]
[Date "2023.11.11"]
[Round "9.7"]
[White "Sengatullin, Aidar"]
[Black "Evtukhov, Lev"]
[Result "1-0"]
[TimeControl "10:5"]
[WhiteFideId "34189138"]
[BlackFideId "44173210"]
[WhiteElo "1376"]
[BlackElo "1923"]

1. e4 {[%clk 00:10:09]} {[%emt 00:00:31]} e5 {[%clk 00:10:09]} {[%emt
00:00:01]} 2. Nf3 {[%clk 00:10:13]} {[%emt 00:00:02]} d5 {[%clk 00:10:13]}
{[%emt 00:00:02]} 3. Nxe5 {[%clk 00:09:26]} {[%emt 00:00:52]} Bd6 {[%clk
00:10:15]} {[%emt 00:00:02]} 4. d4 {[%clk 00:09:20]} {[%emt 00:00:11]} dxe4
{[%clk 00:10:17]} {[%emt 00:00:02]} 5. Bf4 {[%clk 00:09:14]} {[%emt 00:00:12]}
Nf6 {[%clk 00:10:16]} {[%emt 00:00:06]} 6. Bc4 {[%clk 00:09:14]} {[%emt
00:00:05]} O-O {[%clk 00:10:16]} {[%emt 00:00:03]} 7. O-O {[%clk 00:09:15]}
{[%emt 00:00:05]} Nc6 {[%clk 00:10:16]} {[%emt 00:00:06]} 8. Nxc6 {[%clk
00:09:17]} {[%emt 00:00:03]} bxc6 {[%clk 00:10:19]} {[%emt 00:00:01]} 9. Bg5
{[%clk 00:09:12]} {[%emt 00:00:11]} h6 {[%clk 00:09:54]} {[%emt 00:00:30]} 10.
Bh4 {[%clk 00:09:16]} g5 {[%clk 00:08:48]} {[%emt 00:01:11]} 11. Bg3 {[%clk
00:09:19]} {[%emt 00:00:02]} Bf4 {[%clk 00:08:51]} {[%emt 00:00:02]} 12. Nc3
{[%clk 00:09:03]} {[%emt 00:00:22]} Qd6 {[%clk 00:08:20]} {[%emt 00:00:36]} 13.
Re1 {[%clk 00:08:44]} {[%emt 00:00:24]} Bf5 {[%clk 00:08:16]} {[%emt 00:00:08]}
14. d5 {[%clk 00:08:06]} {[%emt 00:00:43]} c5 {[%clk 00:07:08]} {[%emt
00:01:13]} 15. Nb5 {[%clk 00:06:16]} {[%emt 00:01:55]} Qe7 {[%clk 00:07:07]}
{[%emt 00:00:06]} 16. Bxf4 {[%clk 00:06:09]} {[%emt 00:00:14]} gxf4 {[%clk
00:07:09]} {[%emt 00:00:02]} 17. d6 {[%clk 00:06:13]} {[%emt 00:00:01]} cxd6
{[%clk 00:07:03]} {[%emt 00:00:12]} 18. Qxd6 {[%clk 00:06:16]} {[%emt
00:00:02]} Qxd6 {[%clk 00:06:54]} {[%emt 00:00:13]} 19. Nxd6 {[%clk 00:06:19]}
{[%emt 00:00:02]} Bg6 {[%clk 00:06:57]} {[%emt 00:00:02]} 20. h4 {[%clk
00:05:41]} {[%emt 00:00:44]} h5 {[%clk 00:06:43]} {[%emt 00:00:18]} 21. Rad1
{[%emt 00:00:14]} Rad8 {[%clk 00:06:09]} {[%emt 00:00:31]} 22. c3 {[%clk
00:05:22]} {[%emt 00:00:24]} Kg7 {[%clk 00:05:25]} {[%emt 00:00:49]} 23. Nb7
{[%clk 00:04:41]} {[%emt 00:00:47]} Rb8 {[%clk 00:05:14]} {[%emt 00:00:15]} 24.
Nxc5 {[%clk 00:04:35]} {[%emt 00:00:11]} Rxb2 {[%clk 00:05:09]} {[%emt
00:00:10]} 25. Bb3 {[%clk 00:04:35]} {[%emt 00:00:05]} Ng4 {[%clk 00:03:42]}
{[%emt 00:01:32]} 26. Nxe4 {[%clk 00:04:07]} {[%emt 00:00:34]} Bxe4 {[%clk
00:03:43]} {[%emt 00:00:04]} 27. Rxe4 {[%clk 00:04:10]} Nxf2 {[%clk 00:03:46]}
{[%emt 00:00:03]} 28. Rxf4 {[%clk 00:03:36]} {[%emt 00:00:39]} Nxd1 {[%clk
00:03:49]} {[%emt 00:00:02]} 29. Bxd1 {[%clk 00:03:35]} {[%emt 00:00:06]} Rb1
{[%clk 00:03:13]} {[%emt 00:00:41]} 30. Rd4 {[%clk 00:03:38]} {[%emt 00:00:01]}
Rc8 {[%clk 00:02:58]} {[%emt 00:00:20]} 31. Kh2 {[%clk 00:02:57]} {[%emt
00:00:46]} Rxc3 {[%clk 00:02:35]} {[%emt 00:00:28]} 32. Bxh5 {[%clk 00:03:00]}
{[%emt 00:00:02]} Rc7 {[%clk 00:02:34]} {[%emt 00:00:06]} 33. Bf3 {[%clk
00:02:52]} {[%emt 00:00:13]} Rb2 {[%clk 00:02:26]} {[%emt 00:00:14]} 34. Bd5
{[%clk 00:02:47]} {[%emt 00:00:10]} Rd7 {[%clk 00:02:10]} {[%emt 00:00:17]} 35.
Rg4+ {[%clk 00:02:50]} {[%emt 00:00:05]} Kh6 {[%clk 00:01:54]} {[%emt
00:00:19]} 36. Bb3 {[%clk 00:02:47]} {[%emt 00:00:10]} Rf2 {[%clk 00:01:53]}
{[%emt 00:00:06]} 37. Rg8 {[%clk 00:02:45]} {[%emt 00:00:08]} Kh7 {[%clk
00:01:49]} {[%emt 00:00:07]} 38. Rg5 {[%clk 00:02:47]} {[%emt 00:00:04]} Rd4
{[%clk 00:01:44]} {[%emt 00:00:10]} 39. Kg3 {[%clk 00:02:41]} {[%emt 00:00:12]}
Rf6 {[%clk 00:01:43]} {[%emt 00:00:04]} 40. Ra5 {[%clk 00:02:19]} {[%emt
00:00:30]} a6 {[%clk 00:01:35]} {[%emt 00:00:13]} 41. Rg5 {[%clk 00:02:12]}
{[%emt 00:00:11]} Kh6 {[%clk 00:01:26]} {[%emt 00:00:14]} 42. Kh3 {[%clk
00:02:07]} {[%emt 00:00:09]} Rf1 {[%clk 00:01:05]} {[%emt 00:00:27]} 43. Ra5
{[%clk 00:01:32]} {[%emt 00:00:40]} Rd6 {[%clk 00:00:38]} {[%emt 00:00:32]} 44.
Kh2 {[%clk 00:01:06]} {[%emt 00:00:31]} Rf4 {[%clk 00:00:36]} {[%emt 00:00:07]}
45. Kg3 {[%clk 00:00:58]} {[%emt 00:00:14]} Rff6 {[%clk 00:00:39]} {[%emt
00:00:01]} 46. Kh3 {[%clk 00:01:01]} {[%emt 00:00:02]} Kg7 {[%clk 00:00:24]}
{[%emt 00:00:20]} 47. h5 {[%clk 00:00:48]} {[%emt 00:00:18]} Rf1 {[%clk
00:00:12]} {[%emt 00:00:17]} 48. Bc4 {[%clk 00:00:42]} {[%emt 00:00:12]} Rff6
{[%clk 00:00:16]} {[%emt 00:00:01]} 49. g4 {[%clk 00:00:41]} {[%emt 00:00:06]}
Rd4 {[%clk 00:00:10]} {[%emt 00:00:11]} 50. Bxa6 {[%clk 00:00:40]} {[%emt
00:00:06]} Rf3+ {[%clk 00:00:14]} 51. Kh4 {[%clk 00:00:34]} {[%emt 00:00:11]}
f5 {[%emt 00:00:15]} 1-0